[Event "Romanian Superleague 2022"]
[Site "Oradea"]
[Date "2022.09.25"]
[Round "5.11"]
[White "Balla, Tamas-Kristof"]
[Black "Gavrilescu, David"]
[Result "0-1"]
[ECO "A01"]
[WhiteElo "2325"]
[BlackElo "2523"]
[Annotator "TA"]
[PlyCount "52"]
[EventDate "2022.09.21"]
[EventType "team-tourn"]
[EventCountry "ROU"]
[SourceTitle "playchess.com"]
[Source "ChessBase"]
[SourceQuality "1"]
[TimeControl "40/5400+30:1800+30"]

{[%evp 11,52,0,0,0,0,0,7,1,8,-3,5,7,10,0,0,0,0,0,0,0,0,0,6,-17,-19,-12,-27,-192,-142,-150,-139,-226,-142,-218,-224,-1085,-1052,-3237,-2940,-29990,-29991,-29991,-29992]} 1. b3 {[%emt 0:00:01]} e5 {[%emt 0:00:30]} 2. Bb2 {[%emt 0:00:05]} Nc6 {[%emt 0:00:13]} 3. c4 {[%emt 0:00:04]} Nf6 {[%emt 0:03:07]} 4. e3 {[%emt 0:00:18]} d5 {[%emt 0:00:38]} 5. cxd5 {[%emt 0:00:06]} Nxd5 {[%emt 0:00:06]} 6. a3 {[%emt 0:00:06]} Bd6 {[%emt 0:01:53]} 7. d3 {[%emt 0:01:16] A01: Nimzowitsch-Larsen Opening.} O-O {[%emt 0:01:09]} 8. Nf3 {[%emt 0:00:05] 8.Nd2 is more advanced technology.} a5 {[%emt 0:07:13]} 9. Nbd2 {[%emt 0:01:10] The position is equal.} Qe7 {[%emt 0:00:32] [#]} 10. Nc4 $146 {[%emt 0:04:58]} ({Predecessor:} 10. Be2 Bg4 11. Qc2 Kh8 12. h3 Bh5 13. g4 Bg6 14. h4 h6 15. h5 Bh7 16. Rg1 {½-½ (49) Artemiev,V (2731)-Le,Q (2713) Bucharest 2019}) 10... f5 {[%emt 0:11:52]} 11. Be2 {[%emt 0:02:09]} b5 {[%emt 0:04:10]} 12. Nxd6 {[%emt 0:02:25]} cxd6 {[%emt 0:00:04]} 13. d4 {[%emt 0:07:05]} e4 {[%emt 0:05:10]} 14. Bxb5 {[%emt 0:02:37]} Bd7 {[%emt 0:02:58]} 15. Bc4 {[%emt 0:07:02]} Be6 {[%emt 0:00:13]} 16. Nd2 {[%emt 0:00:52]} f4 $36 {[%emt 0:06:20][%mdl 2048] Black has some pressure.} 17. Qe2 {[%emt 0:06:18]} a4 {[%emt 0:07:22][%cal Ba5a4,Ba4b3][%mdl 32]} 18. Nxe4 {[%emt 0:11:10]} fxe3 {[%emt 0:05:00] [#] White must now prevent ...Nf4.} 19. fxe3 {[%emt 0:03:43] This move loses the game for White.} (19. O-O $11) 19... Rae8 {[%emt 0:05:23]} (19... Na5 $19 20. Nf2 axb3) 20. O-O-O $17 {[%emt 0:12:53]} Na5 {[%emt 0:03:27] Pair of Knights!} 21. Nd2 {[%emt 0:03:07]} ({Don't go for} 21. bxa4 $2 Nxc4 22. Rd3 Bf5 $19) (21. Rdf1 $17 {is a better defense.}) 21... axb3 {[%emt 0:05:24]} 22. Bd3 {[%emt 0:02:25]} ({Not} 22. e4 $2 Nf4 23. Bxe6+ Qxe6 $19) (22. Bxd5 $17 {was worth a try.} Bxd5 23. Kb1) 22... Bf5 {[%emt 0:02:17] Chess con chili.} 23. Rde1 $2 {[%emt 0:19:29]} (23. Bxf5 Rxf5 24. Kb1 Nxe3 25. Rde1) 23... Qc7+ $19 {[%emt 0:01:30]} 24. Bc4 {[%emt 0:02:21] [#]} Rxe3 $3 {[%emt 0:00:23][%mdl 576] Deflection} 25. Qxe3 {[%emt 0:02:47]} (25. Kd1 Bc2+) 25... Nxc4 {[%emt 0:00:04]} 26. Qxb3 {[%emt 0:00:08]} Na5+ {[%emt 0:00:07] Weighted Error Value: White=0.91/Black=0.11 (very precise)} 0-1

[Event "Romanian Superleague 2022"]
[Site "Oradea"]
[Date "2022.09.25"]
[Round "5.12"]
[White "Costachi, Mihnea"]
[Black "Barzanu, Iulian"]
[Result "1-0"]
[ECO "E65"]
[WhiteElo "2470"]
[BlackElo "2190"]
[Annotator "TA"]
[PlyCount "57"]
[EventDate "2022.09.21"]
[EventType "team-tourn"]
[EventCountry "ROU"]
[SourceTitle "playchess.com"]
[Source "ChessBase"]
[SourceQuality "1"]
[TimeControl "40/5400+30:1800+30"]

{[%evp 20,57,44,47,73,66,78,54,53,57,58,69,72,74,72,66,130,129,202,97,127,145,130,139,156,143,191,172,232,147,271,199,182,177,191,172,261,241,314,297]} 1. d4 {[%emt 0:00:04]} d6 {[%emt 0:00:33]} 2. Nf3 {[%emt 0:00:14]} g6 {[%emt 0:01:49]} 3. g3 {[%emt 0:00:23]} Bg7 {[%emt 0:00:30]} 4. Bg2 {[%emt 0:00:05]} Nf6 {[%emt 0:02:47]} 5. O-O {[%emt 0:00:06]} O-O {[%emt 0:00:05]} 6. b3 {[%emt 0:00:29]} c5 {[%emt 0:12:28]} 7. Bb2 {[%emt 0:01:13]} cxd4 {[%emt 0:15:41]} 8. Nxd4 {[%emt 0:00:20]} a6 {[%emt 0:00:31]} 9. c4 {[%emt 0:00:34]} Qc7 {[%emt 0:16:22]} 10. Nc3 {[%emt 0:01:10]} Nc6 {[%emt 0:00:14]} 11. Rc1 {[%emt 0:00:45] Strongly threatening Nd5.} Ne5 {[%emt 0:10:12] E65: King's Indian: Fianchetto: 6...c5 7 0-0 without d5 by White.} 12. h3 {[%emt 0:04:40] [#]} Qa5 $146 {[%emt 0:04:41]} ({Predecessor:} 12... Bd7 13. Qd2 Rac8 14. Rfd1 Nc6 15. Nd5 Qd8 16. Nxf6+ Bxf6 17. Nxc6 Bxc6 18. Bxf6 exf6 19. Qxd6 {1-0 (38) Aradhya,G (2198)-Ochedzan,T (2180) Chess.com INT 2021}) 13. a3 {[%emt 0:02:20]} Bd7 {[%emt 0:10:12] White is slightly better.} 14. e4 {[%emt 0:18:16]} Nc6 {[%emt 0:10:19]} 15. b4 {[%emt 0:32:03]} Qb6 {[%emt 0:01:07]} 16. c5 $36 {[%emt 0:03:12][%mdl 2048] White has strong initiative.} dxc5 {[%emt 0:02:12]} 17. Na4 {[%emt 0:00:33][%csl LRb6,LRc5]} Qa7 {[%emt 0:01:11]} (17... Qc7 $14 18. Nxc5 e5) 18. Nxc5 $16 {[%emt 0:00:33][%cal Oe4e5]} Rfd8 {[%emt 0:00:39] [#]} (18... Rac8 $16 19. Re1 e5) 19. Nxd7 {[%emt 0:03:42]} (19. e5 $1 $18) 19... Rxd7 {[%emt 0:00:19]} 20. Nxc6 {[%emt 0:00:09]} bxc6 {[%emt 0:00:34]} 21. Qa4 {[%emt 0:06:31]} Nh5 {[%emt 0:06:41]} 22. Bxg7 {[%emt 0:00:38]} Kxg7 {[%emt 0:00:15]} 23. Qxc6 {[%emt 0:00:30]} Rd3 {[%emt 0:01:38]} (23... Rad8 {was necessary.} 24. Qc5 Qb8) 24. Qc5 {[%emt 0:05:06]} Qd7 {[%emt 0:00:10]} (24... Qxc5 $16 25. bxc5 (25. Rxc5 Rxa3 26. Rd1 Rb3 $14) 25... Kf8) 25. Rc3 {[%emt 0:02:19]} Rxc3 {[%emt 0:01:15]} 26. Qxc3+ {[%emt 0:00:02]} Kg8 {[%emt 0:00:13]} 27. Rc1 {[%emt 0:00:48] Black must now prevent Qc6.} Rd8 {[%emt 0:00:29]} (27... a5 {is a better defense.} 28. bxa5 Qd8) 28. Qc7 $18 {[%emt 0:02:07]} Qd4 {[%emt 0:00:44]} 29. Bf3 {[%emt 0:00:54] Weighted Error Value: White=0.21 (precise) /Black=0.37} 1-0

[Event "Romanian Superleague 2022"]
[Site "Oradea"]
[Date "2022.09.25"]
[Round "5.13"]
[White "Kozak, Adam"]
[Black "Dobre, Claudiu-Cristian"]
[Result "1-0"]
[ECO "A11"]
[WhiteElo "2516"]
[BlackElo "2268"]
[Annotator "TA"]
[PlyCount "64"]
[EventDate "2022.09.21"]
[EventType "team-tourn"]
[EventCountry "ROU"]
[SourceTitle "playchess.com"]
[Source "ChessBase"]
[SourceQuality "1"]
[TimeControl "40/5400+30:1800+30"]

{[%evp 9,64,36,33,25,33,33,37,35,54,43,58,55,52,47,59,53,62,40,59,46,49,28,33,24,65,58,84,75,95,85,135,126,147,143,135,146,171,164,147,150,240,257,272,252,447,444,537,516,778,768,819,812,801,801,782,779,1382]} 1. c4 {[%emt 0:00:19]} Nf6 {[%emt 0:00:07]} 2. Nc3 {[%emt 0:00:33]} c6 {[%emt 0:00:06]} 3. Nf3 {[%emt 0:00:24]} d5 {[%emt 0:00:06]} 4. e3 {[%emt 0:00:06]} Bg4 {[%emt 0:00:04]} 5. Qb3 {[%emt 0:00:06]} Qb6 {[%emt 0:00:05]} 6. Ne5 {[%emt 0:00:09] A11: English Opening: 1...c6.} e6 {[%emt 0:16:00]} 7. Nxg4 {[%emt 0:02:54]} Nxg4 {[%emt 0:00:08]} 8. d4 {[%emt 0:03:15] White is slightly better.} Qxb3 {[%emt 0:09:20]} 9. axb3 {[%emt 0:00:09]} Nd7 {[%emt 0:00:54]} 10. f3 {[%emt 0:02:14]} Ngf6 {[%emt 0:03:07]} 11. g4 {[%emt 0:02:00]} h6 {[%emt 0:01:54] [#]} 12. Kf2 $146 {[%emt 0:02:02]} ({Predecessor:} 12. h4 a6 13. Kf2 g6 14. Bd2 Bg7 15. cxd5 exd5 16. h5 gxh5 17. gxh5 Nf8 18. Ne2 {1-0 (42) Goldin,A (2608)-Labollita,M (2454) Buenos Aires 2003}) 12... a6 {[%emt 0:01:28]} 13. Bd2 {[%emt 0:08:55]} Bd6 {[%emt 0:04:09]} 14. Bd3 {[%emt 0:03:34]} O-O-O {[%emt 0:26:06]} 15. h3 {[%emt 0:21:19]} Bc7 {[%emt 0:05:48]} 16. h4 {[%emt 0:29:43]} Nc5 {[%emt 0:09:18]} 17. Bc2 {[%emt 0:01:34]} (17. dxc5 dxc4 18. bxc4 Rxd3 $11) 17... dxc4 {[%emt 0:00:13] White leaves nothing to chance now.} 18. bxc4 {[%emt 0:00:16]} e5 {[%emt 0:00:17]} 19. Ne2 {[%emt 0:02:57]} Ne6 {[%emt 0:01:58] [#]} ({Better is} 19... exd4 20. Nxd4 (20. exd4 Kb8 $14) 20... Ncd7) 20. Bc3 $1 $16 {[%emt 0:02:53]} exd4 {[%emt 0:02:16]} 21. Nxd4 {[%emt 0:00:20]} Nxd4 {[%emt 0:14:22]} 22. Bxd4 {[%emt 0:00:02]} ({Resist} 22. exd4 Bf4 $14) 22... c5 {[%emt 0:00:35]} 23. Bc3 {[%emt 0:01:29]} ({But not} 23. Bf5+ Kb8 24. Bc3 (24. Bxc5 Rd2+ 25. Ke1 Rxb2 $14) 24... Rhe8 $16) 23... Kb8 {[%emt 0:02:19]} 24. g5 {[%emt 0:07:01]} Nh5 {[%emt 0:00:26]} (24... hxg5 $16 25. hxg5 Rxh1 26. Rxh1 Ne8) 25. f4 $18 {[%emt 0:00:40]} Rhe8 {[%emt 0:01:21]} 26. Rad1 {[%emt 0:02:40] Rxd8+ is the strong threat.} Rxd1 {[%emt 0:00:29]} (26... b5 {is a better defense.} 27. Rxd8+ Rxd8 28. cxb5 axb5) 27. Bxd1 {[%emt 0:00:08] This bishop pair is nice. White is clearly winning.} Nxf4 {[%emt 0:00:25]} 28. exf4 {[%emt 0:00:06]} Bxf4 {[%emt 0:00:04]} (28... Rg8 $142 29. Kf3 Bd8) 29. Bxg7 {[%emt 0:00:24]} hxg5 {[%emt 0:01:03]} 30. h5 {[%emt 0:00:07]} Be3+ {[%emt 0:00:01]} 31. Kg2 {[%emt 0:00:47]} Kc7 {[%emt 0:00:59]} 32. Re1 {[%emt 0:00:31] [#] Hoping for h6.} Rg8 {[%emt 0:00:28] Weighted Error Value: White=0.05 (flawless) /Black=0.33} 1-0

[Event "Romanian Superleague 2022"]
[Site "Oradea"]
[Date "2022.09.25"]
[Round "5.14"]
[White "Padurariu, Mihai-Edward"]
[Black "Petkov, Momchil"]
[Result "0-1"]
[ECO "B53"]
[WhiteElo "2263"]
[BlackElo "2511"]
[Annotator "RC"]
[PlyCount "129"]
[EventDate "2022.09.21"]
[EventType "team-tourn"]
[EventCountry "ROU"]
[SourceTitle "playchess.com"]
[Source "ChessBase"]
[SourceQuality "1"]
[TimeControl "40/5400+30:1800+30"]

1. e4 {[%emt 0:00:10]} c5 {[%emt 0:00:15]} 2. Nf3 {[%emt 0:00:15]} d6 {[%emt 0:00:19]} 3. d4 {[%emt 0:00:22]} cxd4 {[%emt 0:00:14]} 4. Qxd4 {[%emt 0:00:28]} Nc6 {[%emt 0:01:03]} 5. Qe3 {[%emt 0:00:21]} g6 {[%emt 0:00:39]} 6. h3 {[%emt 0:00:37]} Bg7 {[%emt 0:00:13]} 7. Be2 {[%emt 0:00:27]} Nf6 {[%emt 0:00:20]} 8. O-O {[%emt 0:00:19]} O-O {[%emt 0:00:23]} 9. Rd1 {[%emt 0:00:19]} Be6 {[%emt 0:01:30]} 10. Nc3 {[%emt 0:07:42]} Rc8 {[%emt 0:01:08]} 11. a3 {[%emt 0:08:30]} a6 {[%emt 0:07:25]} 12. Nd5 {[%emt 0:05:25]} Bxd5 {[%emt 0:01:43]} 13. exd5 {[%emt 0:00:11]} Na5 {[%emt 0:00:11]} 14. c3 {[%emt 0:20:01]} Qd7 {[%emt 0:18:19]} 15. Qf4 {[%emt 0:07:33]} b5 {[%emt 0:04:25]} 16. a4 {[%emt 0:15:44]} Nb3 {[%emt 0:03:55]} 17. Ra3 {[%emt 0:03:32]} Nxc1 {[%emt 0:00:46]} 18. Qxc1 {[%emt 0:00:25]} b4 {[%emt 0:18:13]} 19. Ra2 {[%emt 0:00:48]} Qb7 {[%emt 0:04:15]} 20. c4 {[%emt 0:05:44]} Nxd5 {[%emt 0:01:05]} 21. Nd4 {[%emt 0:00:21]} Nf6 {[%emt 0:05:41]} 22. Qe3 {[%emt 0:03:51]} Rc5 {[%emt 0:08:31]} 23. Bf3 {[%emt 0:00:40]} Qc7 {[%emt 0:01:23]} 24. b3 {[%emt 0:01:55]} d5 {[%emt 0:08:06]} 25. cxd5 {[%emt 0:03:25]} Nxd5 {[%emt 0:00:28]} 26. Bxd5 {[%emt 0:00:07]} Rxd5 {[%emt 0:00:03]} 27. Rad2 {[%emt 0:00:17]} Bf6 {[%emt 0:01:51]} 28. Nf3 {[%emt 0:03:53]} Rxd2 {[%emt 0:00:34]} 29. Rxd2 {[%emt 0:00:41]} Kg7 {[%emt 0:01:23]} 30. Qe2 {[%emt 0:01:03]} Qc3 {[%emt 0:01:53]} 31. Rd3 {[%emt 0:00:14]} Qc6 {[%emt 0:00:22]} 32. Nd2 {[%emt 0:00:20]} Qc2 {[%emt 0:00:52]} 33. Qe3 {[%emt 0:05:04]} Rc8 {[%emt 0:01:17]} 34. Nc4 {[%emt 0:02:45]} Qb1+ {[%emt 0:05:24]} 35. Kh2 {[%emt 0:00:05]} Rc6 {[%emt 0:00:06]} 36. Qd2 {[%emt 0:01:11]} Re6 {[%emt 0:00:42]} 37. Qd1 {[%emt 0:00:25]} Re1 {[%emt 0:00:42]} 38. Qxb1 {[%emt 0:00:22]} Rxb1 {[%emt 0:00:07]} 39. f4 {[%emt 0:03:51]} Bc3 {[%emt 0:00:47]} 40. Na5 {[%emt 0:00:00]} e5 {[%emt 0:00:00]} 41. fxe5 {[%emt 0:08:20]} Bxe5+ {[%emt 0:02:47]} 42. g3 {[%emt 0:00:04]} Rb2+ {[%emt 0:00:21]} 43. Kg1 {[%emt 0:00:07]} Rc2 {[%emt 0:01:52]} 44. Nc4 {[%emt 0:01:16]} Bc7 {[%emt 0:02:16]} 45. Rf3 {[%emt 0:00:46]} h5 {[%emt 0:09:24]} 46. Kf1 {[%emt 0:01:40]} f5 {[%emt 0:02:15]} 47. Rd3 {[%emt 0:01:17]} Kh6 {[%emt 0:00:20]} 48. Re3 {[%emt 0:02:27]} Kg5 {[%emt 0:04:18]} 49. Rf3 {[%emt 0:04:05]} h4 {[%emt 0:03:09]} 50. gxh4+ {[%emt 0:02:28]} Kxh4 {[%emt 0:00:05]} 51. Ne3 {[%emt 0:00:44]} Rd2 {[%emt 0:03:06]} 52. Ng2+ {[%emt 0:01:29]} Kg5 {[%emt 0:00:06]} 53. Ne1 {[%emt 0:03:17]} Rb2 {[%emt 0:03:10]} 54. Rd3 {[%emt 0:01:00]} Be5 {[%emt 0:00:16]} 55. Nf3+ {[%emt 0:00:58]} Kf4 {[%emt 0:00:18]} 56. Nxe5 {[%emt 0:00:46]} Kxe5 {[%emt 0:00:03]} 57. Rg3 {[%emt 0:01:33]} Kf6 {[%emt 0:02:43]} 58. Rd3 {[%emt 0:00:35]} Kg5 {[%emt 0:00:15]} 59. a5 {[%emt 0:03:39]} f4 {[%emt 0:01:29]} 60. Kg1 {[%emt 0:01:03]} Kh4 {[%emt 0:00:45]} 61. Kf1 {[%emt 0:01:59]} g5 {[%emt 0:00:24]} 62. Kg1 {[%emt 0:01:03]} Rc2 {[%emt 0:00:49]} 63. Rd6 {[%emt 0:01:14]} Kg3 {[%emt 0:00:31]} 64. Kf1 {[%emt 0:00:06]} f3 {[%emt 0:00:11]} 65. Rc6 {[%emt 0:01:41]} 0-1

[Event "Romanian Superleague 2022"]
[Site "Oradea"]
[Date "2022.09.25"]
[Round "5.15"]
[White "Bonte, Andrei-Mihai"]
[Black "Voiteanu, Gabriel"]
[Result "1-0"]
[ECO "D02"]
[WhiteElo "2339"]
[BlackElo "2154"]
[Annotator "TA"]
[PlyCount "155"]
[EventDate "2022.09.21"]
[EventType "team-tourn"]
[EventCountry "ROU"]
[SourceTitle "playchess.com"]
[Source "ChessBase"]
[SourceQuality "1"]
[TimeControl "40/5400+30:1800+30"]

{[%evp 12,155,18,33,43,53,36,35,35,46,75,55,103,104,111,104,128,129,133,133,131,120,121,125,116,127,123,112,112,112,112,112,131,112,117,118,114,118,125,121,116,121,118,114,109,112,86,93,86,91,95,86,74,87,87,86,91,0,8,0,0,0,0,0,0,0,0,0,0,0,0,-60,0,-177,0,0,-8,-6,-7,-8,0,-58,-58,-73,-67,-26,-33,-852,-916,-891,-14,-14,-14,-14,-14,-14,0,0,0,0,0,0,0,0,0,0,0,0,0,0,0,0,0,-12,-12,-12,0,0,8,8,0,0,0,-3189,-1271,-410,-410,-410,-258,-29972,-20,-20,0,0,0,0,8,8,594,129,29984,29985,29985,29986,29988,29987]} 1. d4 {[%emt 0:00:09]} d5 {[%emt 0:00:13]} 2. Nf3 {[%emt 0:02:12]} Nf6 {[%emt 0:00:29]} 3. Bf4 {[%emt 0:00:07]} c5 {[%emt 0:01:11]} 4. e3 {[%emt 0:00:16]} e6 {[%emt 0:04:42]} 5. Nbd2 {[%emt 0:04:04]} Nc6 {[%emt 0:00:38]} 6. c3 {[%emt 0:00:10]} Qb6 {[%emt 0:00:48] 6...Nh5 is setting a new trend.} 7. Qb3 {[%emt 0:05:33]} Nh5 {[%emt 0:01:19] D02: 1 d4 d5 2 Nf3 sidelines, including 2...Nf6 3 g3 and 2...Nf6 3 Bf4.} 8. Qxb6 {[%emt 1:21:59]} axb6 {[%emt 1:25:10]} 9. Bc7 {[%emt 0:00:00]} c4 {[%emt 0:00:00] White is slightly better.} 10. Bxb6 {[%emt 0:00:00]} Ra6 {[%emt 0:00:00] [#]} 11. Bc5 $146 {[%emt 0:00:00]} ({Predecessor:} 11. Bc7 b5 12. Be2 Nf6 13. O-O b4 14. cxb4 Bxb4 15. a3 Be7 16. Bf4 Ra7 17. b4 {0-1 (37) Bagheri,A (2490)-Drozdovskij,Y (2587) Beijing 2008}) 11... b5 {[%emt 0:00:00]} (11... Bxc5 $14 {was preferrable.} 12. dxc5 Nf6) 12. Bxf8 $16 {[%emt 0:00:00]} Rxf8 {[%emt 0:00:00]} 13. Ne5 {[%emt 0:00:00]} g6 {[%emt 0:00:00]} 14. Nxc6 {[%emt 0:00:00]} Rxc6 {[%emt 0:00:00]} 15. Be2 {[%emt 0:00:00]} Nf6 {[%emt 0:00:00]} 16. a4 {[%emt 0:00:00]} bxa4 {[%emt 0:00:00]} 17. Rxa4 {[%emt 0:00:00]} Rb6 {[%emt 0:00:00] Prevents b3.} 18. Ra2 {[%emt 0:00:00]} Bd7 {[%emt 0:00:00]} 19. f3 {[%emt 0:00:00]} Ke7 {[%emt 0:00:00]} 20. Kd1 {[%emt 0:00:00]} Rfb8 {[%emt 0:00:00]} 21. Kc2 {[%emt 0:00:00]} Ne8 {[%emt 0:00:00][%cal Bf6e8,Be8d6,Bd6f5,Bf5e3,Be3g2,Bg2h4,Bh4f3][%mdl 32]} 22. Rb1 {[%emt 0:00:00]} Nd6 {[%emt 0:00:00]} 23. b4 {[%emt 0:00:00]} (23. e4 {feels hotter.} h5 24. Ra7 R8b7 25. Rxb7 Rxb7 26. Ra1) 23... cxb3+ {[%emt 0:00:00]} 24. Rxb3 {[%emt 0:00:00]} Rxb3 {[%emt 0:00:00]} 25. Nxb3 {[%emt 0:00:00]} Nf5 {[%emt 0:00:00]} 26. Nc5 $1 {[%emt 0:00:00]} Nxe3+ {[%emt 0:00:00]} 27. Kd2 $1 {[%emt 0:00:00]} Nxg2 {[%emt 0:00:00]} 28. Bf1 $1 {[%emt 0:00:00]} Nh4 {[%emt 0:00:00]} 29. Ra7 $1 {[%emt 0:00:00]} Nxf3+ {[%emt 0:00:00]} 30. Ke3 {[%emt 0:00:00]} Nxh2 {[%emt 0:00:00]} 31. Be2 {[%emt 0:00:00]} Rd8 {[%emt 0:00:00]} 32. Kf4 $1 {[%emt 0:00:00] White is much more active.} h5 {[%emt 0:03:49][%cal Oh2g4]} 33. Bb5 $1 {[%emt 0:00:00][%cal Rc5d7]} Ra8 {[%emt 0:03:03]} 34. Rxd7+ {[%emt 0:00:00]} (34. Rb7 $16 Ra5 35. Bd3 (35. Bxd7 Kf8 $16) (35. Rxd7+ Kf6 $11)) 34... Kf6 $11 {[%emt 0:00:20]} 35. Rc7 {[%emt 0:02:28]} Ng4 {[%emt 0:00:28]} 36. Nd7+ {[%emt 0:02:52]} Kg7 {[%emt 0:00:06]} 37. Be2 {[%emt 0:00:28]} Nh6 {[%emt 0:02:19]} 38. Ne5 {[%emt 0:01:11]} Kf6 {[%emt 0:02:41]} 39. Nd7+ {[%emt 0:01:31]} Kg7 {[%emt 0:00:00]} 40. Bd3 {[%emt 0:00:00]} Ra1 {[%emt 0:00:00]} 41. Ne5 {[%emt 0:03:51]} ({White should try} 41. Nc5 $11) 41... Rg1 {[%emt 0:07:42]} ({Better is} 41... h4 $1 $15 42. Kf3 g5) 42. Ra7 $2 {[%emt 0:11:30]} (42. Bxg6 $11 h4 43. Bh5 (43. Bxf7 Rf1+ 44. Kg5 Nxf7+ 45. Kg4 Kf8 $11)) 42... g5+ $2 {[%emt 0:07:50]} (42... h4 $1 $19 43. Bxg6 Rf1+ 44. Kg5 h3 45. Nxf7 Nxf7+ 46. Bxf7 Rxf7) 43. Kf3 {[%emt 0:00:41]} h4 {[%emt 0:02:15]} 44. Kf2 $132 {[%emt 0:05:28][%mdl 2048] White puts up resistance} Rg3 {[%emt 0:00:52]} 45. Be2 {[%emt 0:01:29] Against Ng4+} g4 {[%emt 0:05:45]} 46. Nd3 {[%emt 0:03:13]} (46. c4 $11) 46... Rh3 $1 $15 {[%emt 0:04:18]} 47. Nf4 $1 {[%emt 0:01:10][%csl LRe6,LRh3]} Rh2+ {[%emt 0:00:31]} 48. Kg1 {[%emt 0:00:17]} g3 {[%emt 0:00:26] White must now prevent ...Rf2.} 49. Nxe6+ $2 {[%emt 0:01:16][%mdl 8192]} (49. Bf1 $15) 49... Kf6 $1 $19 {[%emt 0:00:25]} 50. Nf4 {[%emt 0:00:09]} Kf5 $2 {[%emt 0:00:24]} (50... Kg5 $1 $19 {[%cal Rg5f4]} 51. Ng2 h3) 51. Ng2 $11 {[%emt 0:00:45]} h3 {[%emt 0:02:29]} 52. Bf3 {[%emt 0:01:10]} hxg2 {[%emt 0:00:54]} 53. Bxd5 {[%emt 0:01:49][%mdl 4096] Endgame KRB-KRN} Kf4 {[%emt 0:00:58]} 54. Bxg2 {[%emt 0:00:55]} f5 {[%emt 0:00:14] aiming for ...Ng4.} 55. d5 {[%emt 0:03:03][%cal Bd4d5,Bd5d6,Bd6d7][%mdl 32] Hoping for d6.} Ng4 {[%emt 0:00:24]} 56. d6 {[%emt 0:00:16]} Ne3 {[%emt 0:00:30]} 57. Ra2 {[%emt 0:00:26] Threatens to win with d7.} Rh8 {[%emt 0:03:23]} 58. d7 {[%emt 0:02:24]} Rd8 {[%emt 0:01:41]} (58... Rb8 $5 59. Ra4+ $8 Kg5 $11) 59. Rd2 {[%emt 0:02:20]} Rb8 {[%emt 0:00:04]} 60. Rd4+ {[%emt 0:01:30]} Ke5 {[%emt 0:00:12]} 61. Rb4 {[%emt 0:00:31] Prevents Rb1+.} Rd8 {[%emt 0:00:29]} 62. Bc6 {[%emt 0:02:13]} Kd6 {[%emt 0:00:09]} 63. Ba4 {[%emt 0:00:25]} Nd5 {[%emt 0:00:39]} 64. Rd4 {[%emt 0:00:18] And now c4 would win.} Ke5 {[%emt 0:01:16]} 65. Rd3 {[%emt 0:00:27]} f4 {[%emt 0:00:06][%cal Bf5f4,Bf4e3][%mdl 32]} 66. Kg2 {[%emt 0:01:22]} Ne3+ {[%emt 0:00:59]} 67. Rxe3+ $2 {[%emt 0:00:57][%mdl 8192]} fxe3 $19 {[%emt 0:00:02]} 68. Kxg3 $11 {[%emt 0:00:12] KR-KB} Rf8 $1 {[%emt 0:01:16]} 69. Bb5 {[%emt 0:00:44]} Ke4 {[%emt 0:00:17]} 70. Be2 $2 {[%emt 0:00:34]} (70. Kg2 $19 Kd5 71. d8=B Rxd8 72. Kf3) 70... Rg8+ $2 {[%emt 0:00:09]} (70... Rd8 $1 {mates} 71. Kg2 Rxd7 72. Kf1 Rc7 73. Ke1 Rxc3 74. Kd1 Rc5 75. Bg4 Kf4 76. Be2 Ke4 77. Bg4 Kf4 78. Be2 Kg3 79. Ke1 Rc1+ 80. Bd1 Rxd1+ $1 {[%mdl 512]} 81. Ke2 Kf4 $1 82. Kxd1 Kf3 83. Kc2 e2 84. Kd2 Kf2 85. Kc3 e1=Q+ 86. Kc4 Qe5 87. Kd3 Ke1 88. Kc4 Kd2 89. Kb4 Kd3 90. Kb3 Qb5+ 91. Ka2 Kc3 92. Ka3 Qb3#) 71. Bg4 $1 {[%emt 0:00:37]} Kd3 {[%emt 0:00:58]} (71... Rd8 $5 72. c4 $8 (72. Bf3+ $2 Kd3 $19) 72... Rf8 $11) 72. Kf4 {[%emt 0:00:27]} Rd8 {[%emt 0:01:00] ( -> ...Kd2)} 73. Ke5 {[%emt 0:00:23]} Rg8 {[%emt 0:00:30] [#]} 74. c4 $1 {[%emt 0:00:38][%cal Oc4c5] Strongly threatening c5!} Kc3 $2 {[%emt 0:00:32][%mdl 8192] [#]} (74... Rd8 $11 {and Black has nothing to worry.} 75. c5 Rxd7 76. Bxd7 Kc4) (74... Kxc4 75. Be6+) 75. c5 $2 {[%emt 0:00:20]} (75. Be2 $1 $18) 75... Rg5+ $2 {[%emt 0:00:20][%mdl 8192]} (75... Rxg4 $16 76. d8=Q e2 77. Qa5+ Kd3) 76. Kf4 {[%emt 0:00:45] White mates.} Rd5 {[%emt 0:00:40]} 77. Kxe3 {[%emt 0:00:31]} Kb4 {[%emt 0:00:31]} 78. c6 {[%emt 0:00:06] Weighted Error Value: White=0.24 (precise) /Black=0.23 (precise)} 1-0